[Event "Titled Tuesday Blitz April 18 Early 2023"]
[White "Zakhartsov, Vladimir"]
[Black "Toropov, Pavel"]
[WhiteFideId "4145097"]
[BlackFideId "24129178"]
[WhiteElo "2497"]
[BlackElo "2182"]
[Result "1-0"]
[Round "05"]
[TimeControl "180+2"]
[Date "2023.04.18"]
[WhiteClock "0:00:33"]
[BlackClock "0:00:20"]

1. e4 {[%clk 0:03:00]}  e6 {[%clk 0:03:00]} 2. d4 {[%clk 0:02:57]}  d5 {[%clk 0:03:01]} 3. Nd2 {[%clk 0:02:57]}  dxe4 {[%clk 0:03:01]} 4. Nxe4 {[%clk 0:02:58]}  Nd7 {[%clk 0:03:01]} 5. Nf3 {[%clk 0:02:56]}  Ngf6 {[%clk 0:03:02]} 6. Bd3 {[%clk 0:02:54]}  Nxe4 {[%clk 0:03:02]} 7. Bxe4 {[%clk 0:02:53]}  Nf6 {[%clk 0:03:03]} 8. Bd3 {[%clk 0:02:54]}  b6 {[%clk 0:03:02]} 9. Bg5 {[%clk 0:02:51]}  Bb7 {[%clk 0:03:01]} 10. O-O {[%clk 0:02:49]}  Be7 {[%clk 0:03:00]} 11. Qe2 {[%clk 0:02:44]}  O-O {[%clk 0:02:58]} 12. Rad1 {[%clk 0:02:44]}  h6 {[%clk 0:02:53]} 13. Bc1 {[%clk 0:02:41]}  Bxf3 {[%clk 0:02:26]} 14. Qxf3 {[%clk 0:02:35]}  Qd5 {[%clk 0:02:26]} 15. Qxd5 {[%clk 0:02:19]}  exd5 {[%clk 0:02:23]} 16. Bf4 {[%clk 0:02:16]}  Bd6 {[%clk 0:02:20]} 17. Bxd6 {[%clk 0:02:13]}  cxd6 {[%clk 0:02:21]} 18. f3 {[%clk 0:02:10]}  Rfe8 {[%clk 0:02:15]} 19. Kf2 {[%clk 0:02:10]}  Kf8 {[%clk 0:02:14]} 20. a4 {[%clk 0:02:10]}  a5 {[%clk 0:01:52]} 21. Ra1 {[%clk 0:02:07]}  Ke7 {[%clk 0:01:30]} 22. Ra3 {[%clk 0:02:04]}  Kd8 {[%clk 0:01:26]} 23. h4 {[%clk 0:01:58]}  Nd7 {[%clk 0:01:19]} 24. Rb3 {[%clk 0:01:55]}  Kc7 {[%clk 0:01:10]} 25. Rb5 {[%clk 0:01:46]}  Nf6 {[%clk 0:01:08]} 26. g4 {[%clk 0:01:45]}  Kc6 {[%clk 0:01:05]} 27. g5 {[%clk 0:01:43]}  hxg5 {[%clk 0:01:05]} 28. hxg5 {[%clk 0:01:44]}  Nh5 {[%clk 0:01:05]} 29. Rb3 {[%clk 0:01:38]}  Kb7 {[%clk 0:00:57]} 30. Bb5 {[%clk 0:01:21]}  Re6 {[%clk 0:00:50]} 31. Rc3 {[%clk 0:01:20]}  Rh8 {[%clk 0:00:27]} 32. Bc6+ {[%clk 0:01:16]}  Kb8 {[%clk 0:00:26]} 33. Bxd5 {[%clk 0:01:15]}  Re7 {[%clk 0:00:27]} 34. Rh1 {[%clk 0:01:12]}  g6 {[%clk 0:00:27]} 35. Rc6 {[%clk 0:01:08]}  Rhe8 {[%clk 0:00:26]} 36. Bc4 {[%clk 0:00:45]}  d5 {[%clk 0:00:26]} 37. Bb5 {[%clk 0:00:41]}  Ka7 {[%clk 0:00:20]} 38. Rd6 {[%clk 0:00:40]}  Rc8 {[%clk 0:00:20]} 39. c3 {[%clk 0:00:40]}  Nf4 {[%clk 0:00:20]} 40. Rh4 {[%clk 0:00:39]}  Ne6 {[%clk 0:00:20]} 41. Rxd5 {[%clk 0:00:38]}  Kb7 {[%clk 0:00:20]} 42. Re5 {[%clk 0:00:36]}  Rcc7 {[%clk 0:00:20]} 43. Rhe4 {[%clk 0:00:33]} 1-0


[Site "https://www.chess.com"]

[Event "Titled Tuesday Blitz April 18 Early 2023"]
[White "Kucuksari, Kaan"]
[Black "Kravtsiv, Martyn"]
[WhiteFideId "6380166"]
[BlackFideId "14113147"]
[WhiteElo "2364"]
[BlackElo "2695"]
[Result "1-0"]
[Round "05"]
[TimeControl "180+2"]
[Date "2023.04.18"]
[WhiteClock "0:00:08"]
[BlackClock "0:00:27"]

1. d4 {[%clk 0:03:00]}  d5 {[%clk 0:02:58]} 2. c4 {[%clk 0:03:00]}  Nf6 {[%clk 0:02:57]} 3. cxd5 {[%clk 0:03:00]}  Nxd5 {[%clk 0:02:58]} 4. e4 {[%clk 0:02:55]}  Nb6 {[%clk 0:02:58]} 5. Nc3 {[%clk 0:02:52]}  g6 {[%clk 0:02:57]} 6. Nf3 {[%clk 0:02:36]}  Bg7 {[%clk 0:02:56]} 7. Be2 {[%clk 0:02:34]}  O-O {[%clk 0:02:50]} 8. Be3 {[%clk 0:02:31]}  Bg4 {[%clk 0:02:46]} 9. e5 {[%clk 0:02:28]}  Nc6 {[%clk 0:02:42]} 10. O-O {[%clk 0:02:16]}  Nb4 {[%clk 0:02:41]} 11. h3 {[%clk 0:02:10]}  Bf5 {[%clk 0:02:39]} 12. Rc1 {[%clk 0:02:09]}  N4d5 {[%clk 0:02:34]} 13. Bg5 {[%clk 0:02:00]}  Qd7 {[%clk 0:02:28]} 14. Qd2 {[%clk 0:01:49]}  Rac8 {[%clk 0:02:18]} 15. Rfd1 {[%clk 0:01:39]}  Rfd8 {[%clk 0:02:15]} 16. g4 {[%clk 0:01:12]}  Nxc3 {[%clk 0:02:09]} 17. bxc3 {[%clk 0:01:13]}  Be4 {[%clk 0:02:06]} 18. Qe3 {[%clk 0:01:02]}  Bxf3 {[%clk 0:01:46]} 19. Bxf3 {[%clk 0:00:59]}  Nc4 {[%clk 0:01:45]} 20. Qe2 {[%clk 0:00:57]}  b5 {[%clk 0:01:45]} 21. a4 {[%clk 0:00:49]}  c6 {[%clk 0:01:41]} 22. Bg2 {[%clk 0:00:38]}  e6 {[%clk 0:01:38]} 23. Bxd8 {[%clk 0:00:37]}  Qxd8 {[%clk 0:01:39]} 24. axb5 {[%clk 0:00:26]}  cxb5 {[%clk 0:01:38]} 25. d5 {[%clk 0:00:26]}  exd5 {[%clk 0:01:29]} 26. Bxd5 {[%clk 0:00:22]}  Qe7 {[%clk 0:01:16]} 27. e6 {[%clk 0:00:23]}  f5 {[%clk 0:01:13]} 28. Bxc4 {[%clk 0:00:20]}  bxc4 {[%clk 0:01:06]} 29. Rd7 {[%clk 0:00:19]}  Qg5 {[%clk 0:01:06]} 30. Rb1 {[%clk 0:00:16]}  fxg4 {[%clk 0:01:01]} 31. hxg4 {[%clk 0:00:15]}  Bxc3 {[%clk 0:00:55]} 32. Rbb7 {[%clk 0:00:12]}  Be5 {[%clk 0:00:53]} 33. e7 {[%clk 0:00:10]}  Re8 {[%clk 0:00:41]} 34. Rd8 {[%clk 0:00:08]}  Rxd8 {[%clk 0:00:28]} 35. exd8=Q+ {[%clk 0:00:09]}  Qxd8 {[%clk 0:00:28]} 36. Qxe5 {[%clk 0:00:09]}  Qc8 {[%clk 0:00:27]} 37. Qd5+ {[%clk 0:00:08]} 1-0


[Site "https://www.chess.com"]

[Event "Titled Tuesday Blitz April 18 Early 2023"]
[White "Kozin, Yuri"]
[Black "Costachi, Mihnea"]
[WhiteFideId "4129920"]
[BlackFideId "1217518"]
[WhiteElo "2627"]
[BlackElo "2456"]
[Result "1-0"]
[Round "05"]
[TimeControl "180+2"]
[Date "2023.04.18"]
[WhiteClock "0:00:56"]
[BlackClock "0:00:22"]

1. e4 {[%clk 0:02:59]}  e5 {[%clk 0:02:54]} 2. Nf3 {[%clk 0:02:59]}  Nc6 {[%clk 0:02:52]} 3. Bb5 {[%clk 0:02:59]}  a6 {[%clk 0:02:51]} 4. Ba4 {[%clk 0:03:00]}  Nf6 {[%clk 0:02:51]} 5. O-O {[%clk 0:02:58]}  Be7 {[%clk 0:02:51]} 6. Re1 {[%clk 0:02:58]}  b5 {[%clk 0:02:51]} 7. Bb3 {[%clk 0:02:59]}  O-O {[%clk 0:02:51]} 8. a4 {[%clk 0:02:59]}  Rb8 {[%clk 0:02:50]} 9. d3 {[%clk 0:03:00]}  d6 {[%clk 0:02:50]} 10. h3 {[%clk 0:02:59]}  h6 {[%clk 0:02:48]} 11. Nbd2 {[%clk 0:02:57]}  Na5 {[%clk 0:02:43]} 12. Ba2 {[%clk 0:02:55]}  bxa4 {[%clk 0:02:42]} 13. Nc4 {[%clk 0:02:53]}  Nc6 {[%clk 0:02:37]} 14. Bb1 {[%clk 0:02:50]}  Re8 {[%clk 0:02:33]} 15. Rxa4 {[%clk 0:02:49]}  Bf8 {[%clk 0:02:33]} 16. c3 {[%clk 0:02:47]}  d5 {[%clk 0:02:34]} 17. exd5 {[%clk 0:02:42]}  Nxd5 {[%clk 0:02:33]} 18. Ncxe5 {[%clk 0:02:32]}  Nxe5 {[%clk 0:02:33]} 19. Rxe5 {[%clk 0:02:28]}  Rxe5 {[%clk 0:02:32]} 20. Nxe5 {[%clk 0:02:29]}  Nxc3 {[%clk 0:02:08]} 21. bxc3 {[%clk 0:02:17]}  Rxb1 {[%clk 0:02:08]} 22. Qc2 {[%clk 0:02:16]}  Rb5 {[%clk 0:01:59]} 23. d4 {[%clk 0:02:04]}  Bd6 {[%clk 0:01:59]} 24. Bf4 {[%clk 0:01:57]}  Qf6 {[%clk 0:01:57]} 25. Bg3 {[%clk 0:01:56]}  Bf5 {[%clk 0:01:57]} 26. Qd2 {[%clk 0:01:52]}  Rb1+ {[%clk 0:01:47]} 27. Kh2 {[%clk 0:01:52]}  Bxe5 {[%clk 0:01:46]} 28. Bxe5 {[%clk 0:01:50]}  Qc6 {[%clk 0:01:44]} 29. Rb4 {[%clk 0:01:37]}  Rxb4 {[%clk 0:01:33]} 30. cxb4 {[%clk 0:01:38]}  Qc4 {[%clk 0:01:30]} 31. Qf4 {[%clk 0:01:34]}  Be6 {[%clk 0:01:27]} 32. Qg3 {[%clk 0:01:30]}  g5 {[%clk 0:01:06]} 33. Qf3 {[%clk 0:01:29]}  Kf8 {[%clk 0:00:53]} 34. Qf6 {[%clk 0:01:23]}  Ke8 {[%clk 0:00:54]} 35. Qxh6 {[%clk 0:01:16]}  Qxb4 {[%clk 0:00:55]} 36. Qxg5 {[%clk 0:01:14]}  Kd7 {[%clk 0:00:46]} 37. h4 {[%clk 0:01:12]}  a5 {[%clk 0:00:45]} 38. h5 {[%clk 0:01:10]}  a4 {[%clk 0:00:46]} 39. h6 {[%clk 0:01:09]}  a3 {[%clk 0:00:45]} 40. d5 {[%clk 0:01:09]}  Bxd5 {[%clk 0:00:27]} 41. h7 {[%clk 0:01:09]}  Qe4 {[%clk 0:00:21]} 42. h8=Q {[%clk 0:01:07]}  a2 {[%clk 0:00:22]} 43. Qhd8+ {[%clk 0:01:04]}  Kc6 {[%clk 0:00:23]} 44. Qa8+ {[%clk 0:01:03]}  Kb5 {[%clk 0:00:23]} 45. Qb8+ {[%clk 0:01:02]}  Kc4 {[%clk 0:00:22]} 46. Qc1+ {[%clk 0:00:58]}  Kd3 {[%clk 0:00:23]} 47. Qb5+ {[%clk 0:00:57]}  Bc4 {[%clk 0:00:22]} 48. Qd1# {[%clk 0:00:56]} 1-0


[Site "https://www.chess.com"]

[Event "Titled Tuesday Blitz April 18 Early 2023"]
[White "Kukhmazov, Arsen"]
[Black "Sadykov, Ramil"]
[WhiteFideId "24108260"]
[BlackFideId "24113590"]
[WhiteElo "2396"]
[BlackElo "2245"]
[Result "1/2-1/2"]
[Round "05"]
[TimeControl "180+2"]
[Date "2023.04.18"]
[WhiteClock "0:01:02"]
[BlackClock "0:00:03"]

1. d4 {[%clk 0:02:59]}  d5 {[%clk 0:02:54]} 2. c4 {[%clk 0:02:58]}  e6 {[%clk 0:02:49]} 3. Nc3 {[%clk 0:02:57]}  Nf6 {[%clk 0:02:49]} 4. Bg5 {[%clk 0:02:55]}  Be7 {[%clk 0:02:47]} 5. e3 {[%clk 0:02:54]}  O-O {[%clk 0:02:44]} 6. Qc2 {[%clk 0:02:54]}  a6 {[%clk 0:02:14]} 7. Nf3 {[%clk 0:02:43]}  Nbd7 {[%clk 0:01:49]} 8. cxd5 {[%clk 0:02:41]}  exd5 {[%clk 0:01:31]} 9. Bd3 {[%clk 0:02:42]}  h6 {[%clk 0:01:19]} 10. Bf4 {[%clk 0:02:42]}  c5 {[%clk 0:01:18]} 11. O-O {[%clk 0:02:42]}  cxd4 {[%clk 0:01:00]} 12. Nxd4 {[%clk 0:02:41]}  Nc5 {[%clk 0:00:59]} 13. Rfd1 {[%clk 0:02:42]}  Nxd3 {[%clk 0:00:51]} 14. Qxd3 {[%clk 0:02:42]}  Bg4 {[%clk 0:00:51]} 15. Rd2 {[%clk 0:02:42]}  Qb6 {[%clk 0:00:48]} 16. Be5 {[%clk 0:02:40]}  Rfd8 {[%clk 0:00:47]} 17. Nf5 {[%clk 0:02:40]}  Bxf5 {[%clk 0:00:41]} 18. Qxf5 {[%clk 0:02:41]}  Qe6 {[%clk 0:00:39]} 19. Qxe6 {[%clk 0:02:34]}  fxe6 {[%clk 0:00:39]} 20. Rc2 {[%clk 0:02:32]}  Rac8 {[%clk 0:00:35]} 21. Rac1 {[%clk 0:02:32]}  Kf7 {[%clk 0:00:32]} 22. Na4 {[%clk 0:02:21]}  Rxc2 {[%clk 0:00:25]} 23. Rxc2 {[%clk 0:02:22]}  Nd7 {[%clk 0:00:20]} 24. Bg3 {[%clk 0:02:23]}  b5 {[%clk 0:00:19]} 25. Nc3 {[%clk 0:02:23]}  Rc8 {[%clk 0:00:19]} 26. Rc1 {[%clk 0:02:23]}  Bf6 {[%clk 0:00:13]} 27. Bd6 {[%clk 0:02:24]}  Bxc3 {[%clk 0:00:12]} 28. bxc3 {[%clk 0:02:23]}  Rc6 {[%clk 0:00:11]} 29. Bb4 {[%clk 0:02:22]}  Nb6 {[%clk 0:00:09]} 30. Ba5 {[%clk 0:01:56]}  Nc4 {[%clk 0:00:06]} 31. Bd8 {[%clk 0:01:57]}  g5 {[%clk 0:00:04]} 32. h4 {[%clk 0:01:57]}  Ke8 {[%clk 0:00:04]} 33. hxg5 {[%clk 0:01:57]}  Kxd8 {[%clk 0:00:04]} 34. gxh6 {[%clk 0:01:58]}  e5 {[%clk 0:00:04]} 35. Rd1 {[%clk 0:01:59]}  Rxh6 {[%clk 0:00:04]} 36. Rxd5+ {[%clk 0:01:59]}  Kc7 {[%clk 0:00:04]} 37. f4 {[%clk 0:01:45]}  exf4 {[%clk 0:00:04]} 38. exf4 {[%clk 0:01:46]}  Rd6 {[%clk 0:00:04]} 39. Rc5+ {[%clk 0:01:46]}  Rc6 {[%clk 0:00:04]} 40. Rh5 {[%clk 0:01:46]}  Nd6 {[%clk 0:00:04]} 41. f5 {[%clk 0:01:43]}  Rxc3 {[%clk 0:00:03]} 42. f6 {[%clk 0:01:43]}  Rc2 {[%clk 0:00:03]} 43. f7 {[%clk 0:01:38]}  Nxf7 {[%clk 0:00:03]} 44. Rh7 {[%clk 0:01:38]}  Kb6 {[%clk 0:00:02]} 45. Rxf7 {[%clk 0:01:39]}  Rxa2 {[%clk 0:00:02]} 46. g4 {[%clk 0:01:40]}  b4 {[%clk 0:00:03]} 47. Rf8 {[%clk 0:01:37]}  Ra5 {[%clk 0:00:01]} 48. Kg2 {[%clk 0:01:37]}  Kc5 {[%clk 0:00:01]} 49. Rf5+ {[%clk 0:01:06]}  Kb6 {[%clk 0:00:02]} 50. Rf6+ {[%clk 0:01:06]}  Kc7 {[%clk 0:00:02]} 51. Rf7+ {[%clk 0:01:05]}  Kd6 {[%clk 0:00:02]} 52. Rf6+ {[%clk 0:01:03]}  Ke7 {[%clk 0:00:02]} 53. Rb6 {[%clk 0:01:03]}  Rb5 {[%clk 0:00:02]} 54. Rxa6 {[%clk 0:01:04]}  b3 {[%clk 0:00:03]} 55. Ra1 {[%clk 0:01:04]}  Kf6 {[%clk 0:00:02]} 56. Kf3 {[%clk 0:01:04]}  Kg5 {[%clk 0:00:03]} 57. Rh1 {[%clk 0:01:03]}  Kg6 {[%clk 0:00:02]} 58. Ke4 {[%clk 0:01:00]}  b2 {[%clk 0:00:02]} 59. Rb1 {[%clk 0:00:59]}  Kg5 {[%clk 0:00:02]} 60. Kd3 {[%clk 0:01:00]}  Kxg4 {[%clk 0:00:03]} 61. Kc2 {[%clk 0:01:00]}  Rb8 {[%clk 0:00:03]} 62. Rxb2 {[%clk 0:01:01]}  Rxb2+ {[%clk 0:00:03]} 63. Kxb2 {[%clk 0:01:02]} 1/2-1/2


[Site "https://www.chess.com"]

[Event "Titled Tuesday Blitz April 18 Early 2023"]
[White "Zarubitski, Viachaslau"]
[Black "Licznerski, Lukasz"]
[WhiteFideId "13509373"]
[BlackFideId "1179250"]
[WhiteElo "2284"]
[BlackElo "2450"]
[Result "0-1"]
[Round "05"]
[TimeControl "180+2"]
[Date "2023.04.18"]
[WhiteClock "0:00:01"]
[BlackClock "0:00:21"]

1. Nf3 {[%clk 0:03:00]}  Nf6 {[%clk 0:02:47]} 2. g3 {[%clk 0:02:58]}  g6 {[%clk 0:02:46]} 3. Bg2 {[%clk 0:02:58]}  Bg7 {[%clk 0:02:47]} 4. O-O {[%clk 0:02:59]}  d5 {[%clk 0:02:48]} 5. d3 {[%clk 0:02:58]}  O-O {[%clk 0:02:46]} 6. Nbd2 {[%clk 0:02:58]}  c5 {[%clk 0:02:46]} 7. e4 {[%clk 0:02:58]}  Nc6 {[%clk 0:02:46]} 8. Re1 {[%clk 0:02:56]}  e5 {[%clk 0:02:46]} 9. exd5 {[%clk 0:02:55]}  Nxd5 {[%clk 0:02:47]} 10. Nc4 {[%clk 0:02:54]}  Re8 {[%clk 0:02:41]} 11. a4 {[%clk 0:02:54]}  b6 {[%clk 0:02:39]} 12. c3 {[%clk 0:02:14]}  h6 {[%clk 0:02:35]} 13. Bd2 {[%clk 0:01:50]}  Qc7 {[%clk 0:02:09]} 14. Nfxe5 {[%clk 0:01:42]}  Nxe5 {[%clk 0:02:10]} 15. Bxd5 {[%clk 0:01:37]}  Bg4 {[%clk 0:02:11]} 16. f3 {[%clk 0:00:25]}  Rad8 {[%clk 0:02:10]} 17. fxg4 {[%clk 0:00:17]}  Rxd5 {[%clk 0:02:09]} 18. Nxe5 {[%clk 0:00:17]}  Rexe5 {[%clk 0:02:00]} 19. Qf3 {[%clk 0:00:16]}  Qd7 {[%clk 0:01:55]} 20. Rxe5 {[%clk 0:00:15]}  Bxe5 {[%clk 0:01:56]} 21. Bxh6 {[%clk 0:00:14]}  Rxd3 {[%clk 0:01:54]} 22. Qe2 {[%clk 0:00:08]}  Bxg3 {[%clk 0:00:53]} 23. hxg3 {[%clk 0:00:08]}  Rxg3+ {[%clk 0:00:54]} 24. Kf2 {[%clk 0:00:08]}  Rxg4 {[%clk 0:00:55]} 25. Rd1 {[%clk 0:00:07]}  Qf5+ {[%clk 0:00:38]} 26. Qf3 {[%clk 0:00:07]}  Qc8 {[%clk 0:00:32]} 27. Rd8+ {[%clk 0:00:06]}  Qxd8 {[%clk 0:00:32]} 28. Qxg4 {[%clk 0:00:07]}  Qd3 {[%clk 0:00:28]} 29. Qe2 {[%clk 0:00:03]}  Qd7 {[%clk 0:00:23]} 30. Bf4 {[%clk 0:00:03]}  Qxa4 {[%clk 0:00:22]} 31. Qe8+ {[%clk 0:00:02]}  Qxe8 {[%clk 0:00:22]} 32. Be3 {[%clk 0:00:01]}  Qe4 {[%clk 0:00:21]} 0-1


[Site "https://www.chess.com"]

[Event "Titled Tuesday Blitz April 18 Early 2023"]
[White "Mammadov, Zaur"]
[Black "Kim, Sergey"]
[WhiteFideId "13401033"]
[BlackFideId "13700570"]
[WhiteElo "2441"]
[BlackElo "2624"]
[Result "1-0"]
[Round "05"]
[TimeControl "180+2"]
[Date "2023.04.18"]
[WhiteClock "0:02:32"]
[BlackClock "0:02:21"]

1. e4 {[%clk 0:02:57]}  e5 {[%clk 0:02:59]} 2. Nf3 {[%clk 0:02:56]}  Nc6 {[%clk 0:02:59]} 3. Nc3 {[%clk 0:02:57]}  Nf6 {[%clk 0:02:59]} 4. Be2 {[%clk 0:02:56]}  g6 {[%clk 0:02:58]} 5. d4 {[%clk 0:02:55]}  exd4 {[%clk 0:02:58]} 6. Nxd4 {[%clk 0:02:56]}  d6 {[%clk 0:02:58]} 7. Bg5 {[%clk 0:02:53]}  Bg7 {[%clk 0:02:54]} 8. Nxc6 {[%clk 0:02:40]}  bxc6 {[%clk 0:02:54]} 9. e5 {[%clk 0:02:40]}  dxe5 {[%clk 0:02:49]} 10. Qxd8+ {[%clk 0:02:41]}  Kxd8 {[%clk 0:02:49]} 11. O-O-O+ {[%clk 0:02:42]}  Ke7 {[%clk 0:02:44]} 12. Bf3 {[%clk 0:02:38]}  h6 {[%clk 0:02:38]} 13. Bxc6 {[%clk 0:02:37]}  Rb8 {[%clk 0:02:24]} 14. Be3 {[%clk 0:02:35]}  Be6 {[%clk 0:02:21]} 15. Bc5# {[%clk 0:02:32]} 1-0


[Site "https://www.chess.com"]

[Event "Titled Tuesday Blitz April 18 Early 2023"]
[White "Fier, Alexandr"]
[Black "Tomaszewski, Kacper"]
[WhiteFideId "2107139"]
[BlackFideId "1127373"]
[WhiteElo "2610"]
[BlackElo "2211"]
[Result "1-0"]
[Round "05"]
[TimeControl "180+2"]
[Date "2023.04.18"]
[WhiteClock "0:02:41"]
[BlackClock "0:00:59"]

1. d4 {[%clk 0:03:00]}  g6 {[%clk 0:02:57]} 2. h4 {[%clk 0:02:59]}  h6 {[%clk 0:02:55]} 3. h5 {[%clk 0:02:59]}  g5 {[%clk 0:02:54]} 4. e4 {[%clk 0:02:57]}  Bg7 {[%clk 0:02:53]} 5. f4 {[%clk 0:02:57]}  gxf4 {[%clk 0:02:53]} 6. Nf3 {[%clk 0:02:58]}  d5 {[%clk 0:02:52]} 7. Nc3 {[%clk 0:02:57]}  dxe4 {[%clk 0:02:49]} 8. Nxe4 {[%clk 0:02:57]}  Bf5 {[%clk 0:02:45]} 9. Bd3 {[%clk 0:02:55]}  e6 {[%clk 0:02:35]} 10. Bxf4 {[%clk 0:02:55]}  Nc6 {[%clk 0:02:21]} 11. c3 {[%clk 0:02:51]}  Nge7 {[%clk 0:02:15]} 12. Qe2 {[%clk 0:02:50]}  Nd5 {[%clk 0:02:11]} 13. Bh2 {[%clk 0:02:48]}  Qe7 {[%clk 0:02:00]} 14. O-O-O {[%clk 0:02:45]}  O-O-O {[%clk 0:02:00]} 15. Nc5 {[%clk 0:02:45]}  Bxd3 {[%clk 0:01:54]} 16. Qxd3 {[%clk 0:02:45]}  Nf6 {[%clk 0:01:45]} 17. Qb5 {[%clk 0:02:42]}  Na5 {[%clk 0:00:59]} 18. Qxa5 {[%clk 0:02:41]} 1-0


[Site "https://www.chess.com"]

[Event "Titled Tuesday Blitz April 18 Early 2023"]
[White "Gubajdullin, Alexei"]
[Black "Galchenko, Matvey"]
[WhiteFideId "4141202"]
[BlackFideId "24175480"]
[WhiteElo "2279"]
[BlackElo "2423"]
[Result "0-1"]
[Round "05"]
[TimeControl "180+2"]
[Date "2023.04.18"]
[WhiteClock "0:00:04"]
[BlackClock "0:00:07"]

1. c4 {[%clk 0:02:59]}  e6 {[%clk 0:02:59]} 2. Nf3 {[%clk 0:02:58]}  d5 {[%clk 0:02:59]} 3. b3 {[%clk 0:02:58]}  Nf6 {[%clk 0:02:51]} 4. g3 {[%clk 0:02:57]}  dxc4 {[%clk 0:02:42]} 5. bxc4 {[%clk 0:02:57]}  b6 {[%clk 0:02:42]} 6. Bg2 {[%clk 0:02:56]}  Bb7 {[%clk 0:02:42]} 7. O-O {[%clk 0:02:56]}  c5 {[%clk 0:02:42]} 8. Nc3 {[%clk 0:02:50]}  Be7 {[%clk 0:02:39]} 9. a4 {[%clk 0:02:40]}  Nc6 {[%clk 0:02:33]} 10. Ne5 {[%clk 0:02:39]}  Qc8 {[%clk 0:02:33]} 11. Nxc6 {[%clk 0:02:37]}  Bxc6 {[%clk 0:02:33]} 12. a5 {[%clk 0:02:34]}  Bxg2 {[%clk 0:02:31]} 13. Kxg2 {[%clk 0:02:34]}  O-O {[%clk 0:02:31]} 14. d3 {[%clk 0:02:24]}  Nd7 {[%clk 0:02:21]} 15. Bd2 {[%clk 0:02:09]}  Bf6 {[%clk 0:02:19]} 16. axb6 {[%clk 0:02:05]}  axb6 {[%clk 0:02:16]} 17. Qb3 {[%clk 0:02:04]}  h5 {[%clk 0:02:07]} 18. Qb5 {[%clk 0:01:55]}  h4 {[%clk 0:02:04]} 19. f3 {[%clk 0:01:54]}  Qc7 {[%clk 0:01:53]} 20. Ra4 {[%clk 0:01:42]}  Rxa4 {[%clk 0:01:52]} 21. Qxa4 {[%clk 0:01:42]}  Ne5 {[%clk 0:01:51]} 22. Ne4 {[%clk 0:01:39]}  Ng6 {[%clk 0:01:29]} 23. Rb1 {[%clk 0:01:30]}  Bd4 {[%clk 0:01:25]} 24. Qa6 {[%clk 0:01:23]}  f5 {[%clk 0:01:23]} 25. Ng5 {[%clk 0:01:20]}  Qe5 {[%clk 0:01:23]} 26. e4 {[%clk 0:01:14]}  fxe4 {[%clk 0:01:16]} 27. dxe4 {[%clk 0:01:11]}  Bc3 {[%clk 0:01:09]} 28. Be3 {[%clk 0:00:56]}  Ba5 {[%clk 0:00:55]} 29. Qb7 {[%clk 0:00:35]}  Qf6 {[%clk 0:00:28]} 30. Qd7 {[%clk 0:00:25]}  Ne5 {[%clk 0:00:25]} 31. Qxe6+ {[%clk 0:00:25]}  Qxe6 {[%clk 0:00:25]} 32. Nxe6 {[%clk 0:00:25]}  Rxf3 {[%clk 0:00:17]} 33. Bf4 {[%clk 0:00:24]}  h3+ {[%clk 0:00:18]} 34. Kxh3 {[%clk 0:00:24]}  Nxc4 {[%clk 0:00:18]} 35. Rd1 {[%clk 0:00:23]}  Rf2 {[%clk 0:00:11]} 36. Rd7 {[%clk 0:00:21]}  Bc3 {[%clk 0:00:12]} 37. Ng5 {[%clk 0:00:19]}  Kf8 {[%clk 0:00:11]} 38. Ne6+ {[%clk 0:00:19]}  Ke8 {[%clk 0:00:11]} 39. Rb7 {[%clk 0:00:19]}  g6 {[%clk 0:00:08]} 40. Bg5 {[%clk 0:00:19]}  Bf6 {[%clk 0:00:07]} 41. Bf4 {[%clk 0:00:16]}  Rb2 {[%clk 0:00:03]} 42. Nc7+ {[%clk 0:00:16]}  Kd8 {[%clk 0:00:03]} 43. Nd5 {[%clk 0:00:16]}  Bd4 {[%clk 0:00:04]} 44. Bg5+ {[%clk 0:00:14]}  Kc8 {[%clk 0:00:04]} 45. Rc7+ {[%clk 0:00:14]}  Kb8 {[%clk 0:00:05]} 46. Bf4 {[%clk 0:00:14]}  Be5 {[%clk 0:00:06]} 47. Re7 {[%clk 0:00:13]}  Bxf4 {[%clk 0:00:06]} 48. gxf4 {[%clk 0:00:13]}  Re2 {[%clk 0:00:05]} 49. e5 {[%clk 0:00:13]}  b5 {[%clk 0:00:06]} 50. e6 {[%clk 0:00:13]}  b4 {[%clk 0:00:06]} 51. Re8+ {[%clk 0:00:12]}  Kb7 {[%clk 0:00:06]} 52. e7 {[%clk 0:00:13]}  Nd6 {[%clk 0:00:05]} 53. Rd8 {[%clk 0:00:13]}  Kc6 {[%clk 0:00:06]} 54. Nf6 {[%clk 0:00:07]}  Rxe7 {[%clk 0:00:06]} 55. Rb8 {[%clk 0:00:08]}  Rb7 {[%clk 0:00:04]} 56. Rd8 {[%clk 0:00:08]}  b3 {[%clk 0:00:05]} 57. Ng4 {[%clk 0:00:08]}  b2 {[%clk 0:00:04]} 58. Ne5+ {[%clk 0:00:09]}  Kd5 {[%clk 0:00:04]} 59. Nf7 {[%clk 0:00:09]}  Rxf7 {[%clk 0:00:04]} 60. Rb8 {[%clk 0:00:08]}  Rb7 {[%clk 0:00:05]} 61. Rf8 {[%clk 0:00:08]}  b1=Q {[%clk 0:00:05]} 62. f5 {[%clk 0:00:07]}  Nxf5 {[%clk 0:00:05]} 63. Rd8+ {[%clk 0:00:05]}  Nd6 {[%clk 0:00:05]} 64. Kg4 {[%clk 0:00:04]}  Qf5+ {[%clk 0:00:05]} 65. Kg3 {[%clk 0:00:04]}  Rb3+ {[%clk 0:00:06]} 66. Kg2 {[%clk 0:00:05]}  Qf3+ {[%clk 0:00:06]} 67. Kg1 {[%clk 0:00:04]}  Rb1# {[%clk 0:00:07]} 0-1


[Site "https://www.chess.com"]

[Event "Titled Tuesday Blitz April 18 Early 2023"]
[White "Rios Escobar, Adan"]
[Black "Sadhwani, Raunak"]
[WhiteFideId "3403645"]
[BlackFideId "35093487"]
[WhiteElo "2462"]
[BlackElo "2631"]
[Result "0-1"]
[Round "05"]
[TimeControl "180+2"]
[Date "2023.04.18"]
[WhiteClock "0:00:01"]
[BlackClock "0:00:19"]

1. d4 {[%clk 0:03:00]}  d6 {[%clk 0:03:00]} 2. g3 {[%clk 0:02:59]}  g6 {[%clk 0:03:01]} 3. Bg2 {[%clk 0:03:00]}  Bg7 {[%clk 0:03:02]} 4. e4 {[%clk 0:03:00]}  Nf6 {[%clk 0:03:01]} 5. Ne2 {[%clk 0:03:01]}  O-O {[%clk 0:03:02]} 6. O-O {[%clk 0:03:01]}  Nc6 {[%clk 0:03:02]} 7. Nbc3 {[%clk 0:03:01]}  e5 {[%clk 0:03:03]} 8. dxe5 {[%clk 0:03:01]}  Nxe5 {[%clk 0:03:03]} 9. f4 {[%clk 0:03:01]}  Nc6 {[%clk 0:03:04]} 10. h3 {[%clk 0:03:00]}  Re8 {[%clk 0:03:04]} 11. g4 {[%clk 0:02:56]}  Nd7 {[%clk 0:02:58]} 12. Ng3 {[%clk 0:02:54]}  Nc5 {[%clk 0:02:57]} 13. a4 {[%clk 0:02:51]}  b6 {[%clk 0:02:56]} 14. e5 {[%clk 0:02:47]}  Bb7 {[%clk 0:02:56]} 15. exd6 {[%clk 0:02:47]}  cxd6 {[%clk 0:02:56]} 16. Nd5 {[%clk 0:02:44]}  Nd4 {[%clk 0:02:55]} 17. Ra3 {[%clk 0:02:34]}  Rc8 {[%clk 0:02:54]} 18. b4 {[%clk 0:02:21]}  Nd7 {[%clk 0:02:03]} 19. Rf2 {[%clk 0:02:10]}  a5 {[%clk 0:01:38]} 20. Rd3 {[%clk 0:02:05]}  Qh4 {[%clk 0:01:05]} 21. Kh2 {[%clk 0:01:53]}  Nc6 {[%clk 0:01:04]} 22. c3 {[%clk 0:01:44]}  axb4 {[%clk 0:01:04]} 23. cxb4 {[%clk 0:01:44]}  Nf6 {[%clk 0:00:48]} 24. Nxb6 {[%clk 0:01:29]}  Nxb4 {[%clk 0:00:42]} 25. Nxc8 {[%clk 0:00:51]}  Nxd3 {[%clk 0:00:40]} 26. Rc2 {[%clk 0:00:29]}  Bxg2 {[%clk 0:00:34]} 27. Kxg2 {[%clk 0:00:30]}  Ne1+ {[%clk 0:00:34]} 28. Kh2 {[%clk 0:00:10]}  Nxc2 {[%clk 0:00:32]} 29. Nxd6 {[%clk 0:00:10]}  Rd8 {[%clk 0:00:32]} 30. g5 {[%clk 0:00:05]}  Rxd6 {[%clk 0:00:21]} 31. Qxd6 {[%clk 0:00:01]}  Qxg3+ {[%clk 0:00:19]} 0-1


[Site "https://www.chess.com"]